Workbook

Sheet Pontszámkövető
B1: Ide írja a pontszámait
C3: Tantárgy | D3: Típus | E3: Leírás | F3: Pontszám
C4: Modern francia | D4: Házi feladat | E4: A II. világháború története | F4: 80%
C5: Haladó Java-programozás | D5: Zárthelyi | F5: 75%
C6: Spanyol | D6: Házi feladat | F6: 50%
C7: Elméleti fizika | D7: Házi feladat | F7: 95%
C8: Modern francia | D8: Házi feladat | E8: Az I. világháború története | F8: 90%
C9: Modern francia | D9: Házi feladat | E9: 30–41. oldal | F9: 80%
C10: Fogalmazás | D10: Dolgozat | E10: Vita | F10: 95%
C11: Matematika 1 | D11: Házi feladat | E11: 21. és 26. oldal | F11: 80%
C12: Matematika 2 | D12: Házi feladat | E12: 15. és 18. oldal | F12: 85%
C13: Matematika 1 | D13: Házi feladat | E13: 34–36. oldal | F13: 80%
C14: Matematika 2 | D14: Teszt | F14: 95%

Sheet Saját teljesítmény
B1: Saját teljesítmény
C3: Összesen
C4: ="Naponta: "&SUM(táblázatTantárgyak[Kreditóraszám]) -> Naponta: 24 | D4: =AVERAGE(D7:D31) -> 81% | E4: =AVERAGE(E7:E31) -> 2.71 | F4: =SUM(F7:F31) -> 2.63 | G4: =IFERROR(HLOOKUP(D4,listaÁtlagMegfeleltetés,2),"") -> B-
C6: Tantárgyak | D6: % | E6: Átlag | F6: S. átlag | G6: Betűvel | H6: Általános teljesítmény
C7: =Számítások!C6 -> Modern francia | D7: =Számítások!AL6 -> 83% | E7: =Számítások!AM6 -> 3.00 | F7: =IFERROR(E7*Beállítások!D9/SUM(táblázatTantárgyak[Kreditóraszám]),"") -> 0.38 | G7: =Számítások!AN6 -> B
C8: =Számítások!C7 -> Elméleti fizika | D8: =Számítások!AL7 -> 95% | E8: =Számítások!AM7 -> 4.00 | F8: =IFERROR(E8*Beállítások!D10/SUM(táblázatTantárgyak[Kreditóraszám]),"") -> 0.50 | G8: =Számítások!AN7 -> A
C9: =Számítások!C8 -> Matematika 1 | D9: =Számítások!AL8 -> 80% | E9: =Számítások!AM8 -> 2.67 | F9: =IFERROR(E9*Beállítások!D11/SUM(táblázatTantárgyak[Kreditóraszám]),"") -> 0.45 | G9: =Számítások!AN8 -> B-
C10: =Számítások!C9 -> Matematika 2 | D10: =Számítások!AL9 -> 89% | E10: =Számítások!AM9 -> 3.33 | F10: =IFERROR(E10*Beállítások!D12/SUM(táblázatTantárgyak[Kreditóraszám]),"") -> 0.56 | G10: =Számítások!AN9 -> B+
C11: =Számítások!C10 -> Haladó Java-programozás | D11: =Számítások!AL10 -> 75% | E11: =Számítások!AM10 -> 2.00 | F11: =IFERROR(E11*Beállítások!D13/SUM(táblázatTantárgyak[Kreditóraszám]),"") -> 0.42 | G11: =Számítások!AN10 -> C
C12: =Számítások!C11 -> Spanyol | D12: =Számítások!AL11 -> 50% | E12: =Számítások!AM11 -> 0.00 | F12: =IFERROR(E12*Beállítások!D14/SUM(táblázatTantárgyak[Kreditóraszám]),"") -> 0.00 | G12: =Számítások!AN11 -> F
C13: =Számítások!C12 -> Fogalmazás | D13: =Számítások!AL12 -> 95% | E13: =Számítások!AM12 -> 4.00 | F13: =IFERROR(E13*Beállítások!D15/SUM(táblázatTantárgyak[Kreditóraszám]),"") -> 0.33 | G13: =Számítások!AN12 -> A
C14: =Számítások!C13 ->  | D14: =Számítások!AL13 ->  | E14: =Számítások!AM13 ->  | F14: =IFERROR(E14*Beállítások!D16/SUM(táblázatTantárgyak[Kreditóraszám]),"") ->  | G14: =Számítások!AN13 -> 
C15: =Számítások!C14 ->  | D15: =Számítások!AL14 ->  | E15: =Számítások!AM14 ->  | F15: =IFERROR(E15*Beállítások!D17/SUM(táblázatTantárgyak[Kreditóraszám]),"") ->  | G15: =Számítások!AN14 -> 
C16: =Számítások!C15 ->  | D16: =Számítások!AL15 ->  | E16: =Számítások!AM15 ->  | F16: =IFERROR(E16*Beállítások!D18/SUM(táblázatTantárgyak[Kreditóraszám]),"") ->  | G16: =Számítások!AN15 -> 
C17: =Számítások!C16 ->  | D17: =Számítások!AL16 ->  | E17: =Számítások!AM16 ->  | F17: =IFERROR(E17*Beállítások!D19/SUM(táblázatTantárgyak[Kreditóraszám]),"") ->  | G17: =Számítások!AN16 -> 
C18: =Számítások!C17 ->  | D18: =Számítások!AL17 ->  | E18: =Számítások!AM17 ->  | F18: =IFERROR(E18*Beállítások!D20/SUM(táblázatTantárgyak[Kreditóraszám]),"") ->  | G18: =Számítások!AN17 -> 
C19: =Számítások!C18 ->  | D19: =Számítások!AL18 ->  | E19: =Számítások!AM18 ->  | F19: =IFERROR(E19*Beállítások!D21/SUM(táblázatTantárgyak[Kreditóraszám]),"") ->  | G19: =Számítások!AN18 -> 
C20: =Számítások!C19 ->  | D20: =Számítások!AL19 ->  | E20: =Számítások!AM19 ->  | F20: =IFERROR(E20*Beállítások!D22/SUM(táblázatTantárgyak[Kreditóraszám]),"") ->  | G20: =Számítások!AN19 -> 
C21: =Számítások!C20 ->  | D21: =Számítások!AL20 ->  | E21: =Számítások!AM20 ->  | F21: =IFERROR(E21*Beállítások!D23/SUM(táblázatTantárgyak[Kreditóraszám]),"") ->  | G21: =Számítások!AN20 -> 
C22: =Számítások!C21 ->  | D22: =Számítások!AL21 ->  | E22: =Számítások!AM21 ->  | F22: =IFERROR(E22*Beállítások!D24/SUM(táblázatTantárgyak[Kreditóraszám]),"") ->  | G22: =Számítások!AN21 -> 
C23: =Számítások!C22 ->  | D23: =Számítások!AL22 ->  | E23: =Számítások!AM22 ->  | F23: =IFERROR(E23*Beállítások!D25/SUM(táblázatTantárgyak[Kreditóraszám]),"") ->  | G23: =Számítások!AN22 -> 
C24: =Számítások!C23 ->  | D24: =Számítások!AL23 ->  | E24: =Számítások!AM23 ->  | F24: =IFERROR(E24*Beállítások!D26/SUM(táblázatTantárgyak[Kreditóraszám]),"") ->  | G24: =Számítások!AN23 -> 
C25: =Számítások!C24 ->  | D25: =Számítások!AL24 ->  | E25: =Számítások!AM24 ->  | F25: =IFERROR(E25*Beállítások!D27/SUM(táblázatTantárgyak[Kreditóraszám]),"") ->  | G25: =Számítások!AN24 -> 
C26: =Számítások!C25 ->  | D26: =Számítások!AL25 ->  | E26: =Számítások!AM25 ->  | F26: =IFERROR(E26*Beállítások!D28/SUM(táblázatTantárgyak[Kreditóraszám]),"") ->  | G26: =Számítások!AN25 -> 
C27: =Számítások!C26 ->  | D27: =Számítások!AL26 ->  | E27: =Számítások!AM26 ->  | F27: =IFERROR(E27*Beállítások!D29/SUM(táblázatTantárgyak[Kreditóraszám]),"") ->  | G27: =Számítások!AN26 -> 
C28: =Számítások!C27 ->  | D28: =Számítások!AL27 ->  | E28: =Számítások!AM27 ->  | F28: =IFERROR(E28*Beállítások!D30/SUM(táblázatTantárgyak[Kreditóraszám]),"") ->  | G28: =Számítások!AN27 -> 
C29: =Számítások!C28 ->  | D29: =Számítások!AL28 ->  | E29: =Számítások!AM28 ->  | F29: =IFERROR(E29*Beállítások!D31/SUM(táblázatTantárgyak[Kreditóraszám]),"") ->  | G29: =Számítások!AN28 -> 
C30: =Számítások!C29 ->  | D30: =Számítások!AL29 ->  | E30: =Számítások!AM29 ->  | F30: =IFERROR(E30*Beállítások!D32/SUM(táblázatTantárgyak[Kreditóraszám]),"") ->  | G30: =Számítások!AN29 -> 
C31: =Számítások!C30 ->  | D31: =Számítások!AL30 ->  | E31: =Számítások!AM30 ->  | F31: =IFERROR(E31*Beállítások!D33/SUM(táblázatTantárgyak[Kreditóraszám]),"") ->  | G31: =Számítások!AN30 -> 

Sheet Beállítások
B1: Beállítások
C2: Pontszámok és átlagok megfeleltetése
C3: Százalék | D3: 0% | E3: 60% | F3: 63% | G3: 67% | H3: 70% | I3: 73% | J3: 77% | K3: 80% | L3: 83% | M3: 87% | N3: 90% | O3: 93% | P3: 97%
C4: Betűvel | D4: F | E4: D- | F4: D | G4: D+ | H4: C- | I4: C | J4: C+ | K4: B- | L4: B | M4: B+ | N4: A- | O4: A | P4: A+
C5: Átlag | D5: 0 | E5: 0.67 | F5: 1 | G5: 1.33 | H5: 1.67 | I5: 2 | J5: 2.33 | K5: 2.67 | L5: 3 | M5: 3.33 | N5: 3.67 | O5: 4 | P5: 4
C7: Maximum 25 tantárgy súlyozott pontszáma
C8: Saját tantárgyak | D8: Kreditóraszám | E8: Házi feladat | F8: Dolgozat | G8: Teszt | H8: Kiselőadás | I8: Zárthelyi | J8: Záróvizsga | K8: Egyéb | L8: % összesen
C9: Modern francia | D9: 3.0 | E9: 10% | F9: 15% | G9: 15% | H9: 10% | I9: 20% | J9: 30% | L9: =SUM(táblázatTantárgyak[[#This Row],[Házi feladat]:[Egyéb]]) -> 100%
C10: Elméleti fizika | D10: 3.0 | E10: 15% | F10: 15% | G10: 10% | H10: 10% | I10: 15% | J10: 30% | K10: 5% | L10: =SUM(táblázatTantárgyak[[#This Row],[Házi feladat]:[Egyéb]]) -> 100%
C11: Matematika 1 | D11: 4.0 | E11: 10% | F11: 15% | G11: 15% | H11: 10% | I11: 20% | J11: 30% | L11: =SUM(táblázatTantárgyak[[#This Row],[Házi feladat]:[Egyéb]]) -> 100%
C12: Matematika 2 | D12: 4.0 | E12: 15% | F12: 15% | G12: 10% | H12: 10% | I12: 15% | J12: 30% | K12: 5% | L12: =SUM(táblázatTantárgyak[[#This Row],[Házi feladat]:[Egyéb]]) -> 100%
C13: Haladó Java-programozás | D13: 5.0 | E13: 15% | F13: 15% | G13: 10% | H13: 10% | I13: 20% | J13: 30% | L13: =SUM(táblázatTantárgyak[[#This Row],[Házi feladat]:[Egyéb]]) -> 100%
C14: Spanyol | D14: 3.0 | E14: 10% | F14: 15% | G14: 17% | H14: 13% | I14: 20% | J14: 20% | K14: 5% | L14: =SUM(táblázatTantárgyak[[#This Row],[Házi feladat]:[Egyéb]]) -> 100%
C15: Fogalmazás | D15: 2.0 | E15: 15% | F15: 15% | G15: 12% | H15: 15% | I15: 15% | J15: 25% | K15: 3% | L15: =SUM(táblázatTantárgyak[[#This Row],[Házi feladat]:[Egyéb]]) -> 100%

Sheet Számítások (hidden)
B1: Számítások
C2: Ez a munkalap kiszámítja az osztályzatokat és az átlagot. Maradjon rejtve. A munkalap bármilyen módosítása hibát okoz.
C4: Aktuális tantárgylista | D4: Pontszám (összesen 1) | AC4: Osztályzatszámítás
C5: Tantárgy | D5: 1 | E5: 2 | F5: 3 | G5: 4 | H5: 5 | I5: 6 | J5: 7 | K5: 8 | L5: 9 | M5: 10 | N5: 11 | O5: 12 | P5: 13 | Q5: 14 | R5: 15 | S5: 16 | T5: 17 | U5: 18 | V5: 19 | W5: 20 | X5: 21 | Y5: 22 | Z5: 23 | AA5: 24 | AB5: 25 | AC5: =táblázatTantárgyak[[#Headers],[Házi feladat]] -> Házi feladat | AD5: =táblázatTantárgyak[[#Headers],[Dolgozat]] -> Dolgozat | AE5: =táblázatTantárgyak[[#Headers],[Teszt]] -> Teszt | AF5: =táblázatTantárgyak[[#Headers],[Kiselőadás]] -> Kiselőadás | AG5: =táblázatTantárgyak[[#Headers],[Zárthelyi]] -> Zárthelyi | AH5: =táblázatTantárgyak[[#Headers],[Záróvizsga]] -> Záróvizsga | AI5: =táblázatTantárgyak[[#Headers],[Egyéb]] -> Egyéb | AJ5: Összesen | AK5: Elérhető összpontszám | AL5: Teljes % | AM5: Pontszám | AN5: Betűvel
C6: =IF(Beállítások!C9="","",Beállítások!C9) -> Modern francia | D6: =IFERROR(INDEX(táblázatOsztályPontszámok[],MATCH($C6:$C30&D$5:AB$5,Számítások!$C$33:$C$657,0),4),"") -> 80% | E6: 90% | F6: 80% | AC6: =IFERROR(AVERAGEIFS(táblázatOsztályPontszámok[Pontszám],táblázatOsztályPontszámok[Tantárgy],Számítások!$C6,táblázatOsztályPontszámok[Típus],Számítások!AC$5)*Beállítások!E9,"") -> 0.08333333333 | AD6: =IFERROR(AVERAGEIFS(táblázatOsztályPontszámok[Pontszám],táblázatOsztályPontszámok[Tantárgy],Számítások!$C6,táblázatOsztályPontszámok[Típus],Számítások!AD$5)*Beállítások!F9,"") ->  | AE6: =IFERROR(AVERAGEIFS(táblázatOsztályPontszámok[Pontszám],táblázatOsztályPontszámok[Tantárgy],Számítások!$C6,táblázatOsztályPontszámok[Típus],Számítások!AE$5)*Beállítások!G9,"") ->  | AF6: =IFERROR(AVERAGEIFS(táblázatOsztályPontszámok[Pontszám],táblázatOsztályPontszámok[Tantárgy],Számítások!$C6,táblázatOsztályPontszámok[Típus],Számítások!AF$5)*Beállítások!H9,"") ->  | AG6: =IFERROR(AVERAGEIFS(táblázatOsztályPontszámok[Pontszám],táblázatOsztályPontszámok[Tantárgy],Számítások!$C6,táblázatOsztályPontszámok[Típus],Számítások!AG$5)*Beállítások!I9,"") ->  | AH6: =IFERROR(AVERAGEIFS(táblázatOsztályPontszámok[Pontszám],táblázatOsztályPontszámok[Tantárgy],Számítások!$C6,táblázatOsztályPontszámok[Típus],Számítások!AH$5)*Beállítások!J9,"") ->  | AI6: =IFERROR(AVERAGEIFS(táblázatOsztályPontszámok[Pontszám],táblázatOsztályPontszámok[Tantárgy],Számítások!$C6,táblázatOsztályPontszámok[Típus],Számítások!AI$5)*Beállítások!K9,"") ->  | AJ6: =SUM(AC6:AI6) -> 0.08333333333 | AK6: =SUMIFS(Beállítások!E9:K9,Számítások!AC6:AI6,">0") -> 0.1 | AL6: =IFERROR(AJ6/AK6,"") -> 83% | AM6: =IFERROR(HLOOKUP(AL6,listaÁtlagMegfeleltetés,3),"") -> 3 | AN6: =IFERROR(HLOOKUP(AL6,listaÁtlagMegfeleltetés,2),"") -> B
C7: =IF(Beállítások!C10="","",Beállítások!C10) -> Elméleti fizika | D7: 95% | AC7: =IFERROR(AVERAGEIFS(táblázatOsztályPontszámok[Pontszám],táblázatOsztályPontszámok[Tantárgy],Számítások!$C7,táblázatOsztályPontszámok[Típus],Számítások!AC$5)*Beállítások!E10,"") -> 0.1425 | AD7: =IFERROR(AVERAGEIFS(táblázatOsztályPontszámok[Pontszám],táblázatOsztályPontszámok[Tantárgy],Számítások!$C7,táblázatOsztályPontszámok[Típus],Számítások!AD$5)*Beállítások!F10,"") ->  | AE7: =IFERROR(AVERAGEIFS(táblázatOsztályPontszámok[Pontszám],táblázatOsztályPontszámok[Tantárgy],Számítások!$C7,táblázatOsztályPontszámok[Típus],Számítások!AE$5)*Beállítások!G10,"") ->  | AF7: =IFERROR(AVERAGEIFS(táblázatOsztályPontszámok[Pontszám],táblázatOsztályPontszámok[Tantárgy],Számítások!$C7,táblázatOsztályPontszámok[Típus],Számítások!AF$5)*Beállítások!H10,"") ->  | AG7: =IFERROR(AVERAGEIFS(táblázatOsztályPontszámok[Pontszám],táblázatOsztályPontszámok[Tantárgy],Számítások!$C7,táblázatOsztályPontszámok[Típus],Számítások!AG$5)*Beállítások!I10,"") ->  | AH7: =IFERROR(AVERAGEIFS(táblázatOsztályPontszámok[Pontszám],táblázatOsztályPontszámok[Tantárgy],Számítások!$C7,táblázatOsztályPontszámok[Típus],Számítások!AH$5)*Beállítások!J10,"") ->  | AI7: =IFERROR(AVERAGEIFS(táblázatOsztályPontszámok[Pontszám],táblázatOsztályPontszámok[Tantárgy],Számítások!$C7,táblázatOsztályPontszámok[Típus],Számítások!AI$5)*Beállítások!K10,"") ->  | AJ7: =SUM(AC7:AI7) -> 0.1425 | AK7: =SUMIFS(Beállítások!E10:K10,Számítások!AC7:AI7,">0") -> 0.15 | AL7: =IFERROR(AJ7/AK7,"") -> 95% | AM7: 4 | AN7: A
C8: =IF(Beállítások!C11="","",Beállítások!C11) -> Matematika 1 | D8: 80% | E8: 80% | AC8: =IFERROR(AVERAGEIFS(táblázatOsztályPontszámok[Pontszám],táblázatOsztályPontszámok[Tantárgy],Számítások!$C8,táblázatOsztályPontszámok[Típus],Számítások!AC$5)*Beállítások!E11,"") -> 0.08 | AD8: =IFERROR(AVERAGEIFS(táblázatOsztályPontszámok[Pontszám],táblázatOsztályPontszámok[Tantárgy],Számítások!$C8,táblázatOsztályPontszámok[Típus],Számítások!AD$5)*Beállítások!F11,"") ->  | AE8: =IFERROR(AVERAGEIFS(táblázatOsztályPontszámok[Pontszám],táblázatOsztályPontszámok[Tantárgy],Számítások!$C8,táblázatOsztályPontszámok[Típus],Számítások!AE$5)*Beállítások!G11,"") ->  | AF8: =IFERROR(AVERAGEIFS(táblázatOsztályPontszámok[Pontszám],táblázatOsztályPontszámok[Tantárgy],Számítások!$C8,táblázatOsztályPontszámok[Típus],Számítások!AF$5)*Beállítások!H11,"") ->  | AG8: =IFERROR(AVERAGEIFS(táblázatOsztályPontszámok[Pontszám],táblázatOsztályPontszámok[Tantárgy],Számítások!$C8,táblázatOsztályPontszámok[Típus],Számítások!AG$5)*Beállítások!I11,"") ->  | AH8: =IFERROR(AVERAGEIFS(táblázatOsztályPontszámok[Pontszám],táblázatOsztályPontszámok[Tantárgy],Számítások!$C8,táblázatOsztályPontszámok[Típus],Számítások!AH$5)*Beállítások!J11,"") ->  | AI8: =IFERROR(AVERAGEIFS(táblázatOsztályPontszámok[Pontszám],táblázatOsztályPontszámok[Tantárgy],Számítások!$C8,táblázatOsztályPontszámok[Típus],Számítások!AI$5)*Beállítások!K11,"") ->  | AJ8: 0.08 | AK8: =SUMIFS(Beállítások!E11:K11,Számítások!AC8:AI8,">0") -> 0.1 | AL8: 80% | AM8: 2.67 | AN8: B-
C9: =IF(Beállítások!C12="","",Beállítások!C12) -> Matematika 2 | D9: 85% | E9: 95% | AC9: =IFERROR(AVERAGEIFS(táblázatOsztályPontszámok[Pontszám],táblázatOsztályPontszámok[Tantárgy],Számítások!$C9,táblázatOsztályPontszámok[Típus],Számítások!AC$5)*Beállítások!E12,"") -> 0.1275 | AD9: =IFERROR(AVERAGEIFS(táblázatOsztályPontszámok[Pontszám],táblázatOsztályPontszámok[Tantárgy],Számítások!$C9,táblázatOsztályPontszámok[Típus],Számítások!AD$5)*Beállítások!F12,"") ->  | AE9: =IFERROR(AVERAGEIFS(táblázatOsztályPontszámok[Pontszám],táblázatOsztályPontszámok[Tantárgy],Számítások!$C9,táblázatOsztályPontszámok[Típus],Számítások!AE$5)*Beállítások!G12,"") -> 0.095 | AF9: =IFERROR(AVERAGEIFS(táblázatOsztályPontszámok[Pontszám],táblázatOsztályPontszámok[Tantárgy],Számítások!$C9,táblázatOsztályPontszámok[Típus],Számítások!AF$5)*Beállítások!H12,"") ->  | AG9: =IFERROR(AVERAGEIFS(táblázatOsztályPontszámok[Pontszám],táblázatOsztályPontszámok[Tantárgy],Számítások!$C9,táblázatOsztályPontszámok[Típus],Számítások!AG$5)*Beállítások!I12,"") ->  | AH9: =IFERROR(AVERAGEIFS(táblázatOsztályPontszámok[Pontszám],táblázatOsztályPontszámok[Tantárgy],Számítások!$C9,táblázatOsztályPontszámok[Típus],Számítások!AH$5)*Beállítások!J12,"") ->  | AI9: =IFERROR(AVERAGEIFS(táblázatOsztályPontszámok[Pontszám],táblázatOsztályPontszámok[Tantárgy],Számítások!$C9,táblázatOsztályPontszámok[Típus],Számítások!AI$5)*Beállítások!K12,"") ->  | AJ9: 0.2225 | AK9: =SUMIFS(Beállítások!E12:K12,Számítások!AC9:AI9,">0") -> 0.25 | AL9: 89% | AM9: 3.33 | AN9: B+
C10: =IF(Beállítások!C13="","",Beállítások!C13) -> Haladó Java-programozás | D10: 75% | AC10: =IFERROR(AVERAGEIFS(táblázatOsztályPontszámok[Pontszám],táblázatOsztályPontszámok[Tantárgy],Számítások!$C10,táblázatOsztályPontszámok[Típus],Számítások!AC$5)*Beállítások!E13,"") ->  | AD10: =IFERROR(AVERAGEIFS(táblázatOsztályPontszámok[Pontszám],táblázatOsztályPontszámok[Tantárgy],Számítások!$C10,táblázatOsztályPontszámok[Típus],Számítások!AD$5)*Beállítások!F13,"") ->  | AE10: =IFERROR(AVERAGEIFS(táblázatOsztályPontszámok[Pontszám],táblázatOsztályPontszámok[Tantárgy],Számítások!$C10,táblázatOsztályPontszámok[Típus],Számítások!AE$5)*Beállítások!G13,"") ->  | AF10: =IFERROR(AVERAGEIFS(táblázatOsztályPontszámok[Pontszám],táblázatOsztályPontszámok[Tantárgy],Számítások!$C10,táblázatOsztályPontszámok[Típus],Számítások!AF$5)*Beállítások!H13,"") ->  | AG10: =IFERROR(AVERAGEIFS(táblázatOsztályPontszámok[Pontszám],táblázatOsztályPontszámok[Tantárgy],Számítások!$C10,táblázatOsztályPontszámok[Típus],Számítások!AG$5)*Beállítások!I13,"") -> 0.15 | AH10: =IFERROR(AVERAGEIFS(táblázatOsztályPontszámok[Pontszám],táblázatOsztályPontszámok[Tantárgy],Számítások!$C10,táblázatOsztályPontszámok[Típus],Számítások!AH$5)*Beállítások!J13,"") ->  | AI10: =IFERROR(AVERAGEIFS(táblázatOsztályPontszámok[Pontszám],táblázatOsztályPontszámok[Tantárgy],Számítások!$C10,táblázatOsztályPontszámok[Típus],Számítások!AI$5)*Beállítások!K13,"") ->  | AJ10: 0.15 | AK10: =SUMIFS(Beállítások!E13:K13,Számítások!AC10:AI10,">0") -> 0.2 | AL10: 75% | AM10: 2 | AN10: C
C11: =IF(Beállítások!C14="","",Beállítások!C14) -> Spanyol | D11: 50% | AC11: =IFERROR(AVERAGEIFS(táblázatOsztályPontszámok[Pontszám],táblázatOsztályPontszámok[Tantárgy],Számítások!$C11,táblázatOsztályPontszámok[Típus],Számítások!AC$5)*Beállítások!E14,"") -> 0.05 | AD11: =IFERROR(AVERAGEIFS(táblázatOsztályPontszámok[Pontszám],táblázatOsztályPontszámok[Tantárgy],Számítások!$C11,táblázatOsztályPontszámok[Típus],Számítások!AD$5)*Beállítások!F14,"") ->  | AE11: =IFERROR(AVERAGEIFS(táblázatOsztályPontszámok[Pontszám],táblázatOsztályPontszámok[Tantárgy],Számítások!$C11,táblázatOsztályPontszámok[Típus],Számítások!AE$5)*Beállítások!G14,"") ->  | AF11: =IFERROR(AVERAGEIFS(táblázatOsztályPontszámok[Pontszám],táblázatOsztályPontszámok[Tantárgy],Számítások!$C11,táblázatOsztályPontszámok[Típus],Számítások!AF$5)*Beállítások!H14,"") ->  | AG11: =IFERROR(AVERAGEIFS(táblázatOsztályPontszámok[Pontszám],táblázatOsztályPontszámok[Tantárgy],Számítások!$C11,táblázatOsztályPontszámok[Típus],Számítások!AG$5)*Beállítások!I14,"") ->  | AH11: =IFERROR(AVERAGEIFS(táblázatOsztályPontszámok[Pontszám],táblázatOsztályPontszámok[Tantárgy],Számítások!$C11,táblázatOsztályPontszámok[Típus],Számítások!AH$5)*Beállítások!J14,"") ->  | AI11: =IFERROR(AVERAGEIFS(táblázatOsztályPontszámok[Pontszám],táblázatOsztályPontszámok[Tantárgy],Számítások!$C11,táblázatOsztályPontszámok[Típus],Számítások!AI$5)*Beállítások!K14,"") ->  | AJ11: 0.05 | AK11: =SUMIFS(Beállítások!E14:K14,Számítások!AC11:AI11,">0") -> 0.1 | AL11: 50% | AM11: 0 | AN11: F
C12: =IF(Beállítások!C15="","",Beállítások!C15) -> Fogalmazás | D12: 95% | AC12: =IFERROR(AVERAGEIFS(táblázatOsztályPontszámok[Pontszám],táblázatOsztályPontszámok[Tantárgy],Számítások!$C12,táblázatOsztályPontszámok[Típus],Számítások!AC$5)*Beállítások!E15,"") ->  | AD12: =IFERROR(AVERAGEIFS(táblázatOsztályPontszámok[Pontszám],táblázatOsztályPontszámok[Tantárgy],Számítások!$C12,táblázatOsztályPontszámok[Típus],Számítások!AD$5)*Beállítások!F15,"") -> 0.1425 | AE12: =IFERROR(AVERAGEIFS(táblázatOsztályPontszámok[Pontszám],táblázatOsztályPontszámok[Tantárgy],Számítások!$C12,táblázatOsztályPontszámok[Típus],Számítások!AE$5)*Beállítások!G15,"") ->  | AF12: =IFERROR(AVERAGEIFS(táblázatOsztályPontszámok[Pontszám],táblázatOsztályPontszámok[Tantárgy],Számítások!$C12,táblázatOsztályPontszámok[Típus],Számítások!AF$5)*Beállítások!H15,"") ->  | AG12: =IFERROR(AVERAGEIFS(táblázatOsztályPontszámok[Pontszám],táblázatOsztályPontszámok[Tantárgy],Számítások!$C12,táblázatOsztályPontszámok[Típus],Számítások!AG$5)*Beállítások!I15,"") ->  | AH12: =IFERROR(AVERAGEIFS(táblázatOsztályPontszámok[Pontszám],táblázatOsztályPontszámok[Tantárgy],Számítások!$C12,táblázatOsztályPontszámok[Típus],Számítások!AH$5)*Beállítások!J15,"") ->  | AI12: =IFERROR(AVERAGEIFS(táblázatOsztályPontszámok[Pontszám],táblázatOsztályPontszámok[Tantárgy],Számítások!$C12,táblázatOsztályPontszámok[Típus],Számítások!AI$5)*Beállítások!K15,"") ->  | AJ12: 0.1425 | AK12: =SUMIFS(Beállítások!E15:K15,Számítások!AC12:AI12,">0") -> 0.15 | AL12: 95% | AM12: 4 | AN12: A
C13: =IF(Beállítások!C16="","",Beállítások!C16) ->  | AC13: =IFERROR(AVERAGEIFS(táblázatOsztályPontszámok[Pontszám],táblázatOsztályPontszámok[Tantárgy],Számítások!$C13,táblázatOsztályPontszámok[Típus],Számítások!AC$5)*Beállítások!E16,"") ->  | AD13: =IFERROR(AVERAGEIFS(táblázatOsztályPontszámok[Pontszám],táblázatOsztályPontszámok[Tantárgy],Számítások!$C13,táblázatOsztályPontszámok[Típus],Számítások!AD$5)*Beállítások!F16,"") ->  | AE13: =IFERROR(AVERAGEIFS(táblázatOsztályPontszámok[Pontszám],táblázatOsztályPontszámok[Tantárgy],Számítások!$C13,táblázatOsztályPontszámok[Típus],Számítások!AE$5)*Beállítások!G16,"") ->  | AF13: =IFERROR(AVERAGEIFS(táblázatOsztályPontszámok[Pontszám],táblázatOsztályPontszámok[Tantárgy],Számítások!$C13,táblázatOsztályPontszámok[Típus],Számítások!AF$5)*Beállítások!H16,"") ->  | AG13: =IFERROR(AVERAGEIFS(táblázatOsztályPontszámok[Pontszám],táblázatOsztályPontszámok[Tantárgy],Számítások!$C13,táblázatOsztályPontszámok[Típus],Számítások!AG$5)*Beállítások!I16,"") ->  | AH13: =IFERROR(AVERAGEIFS(táblázatOsztályPontszámok[Pontszám],táblázatOsztályPontszámok[Tantárgy],Számítások!$C13,táblázatOsztályPontszámok[Típus],Számítások!AH$5)*Beállítások!J16,"") ->  | AI13: =IFERROR(AVERAGEIFS(táblázatOsztályPontszámok[Pontszám],táblázatOsztályPontszámok[Tantárgy],Számítások!$C13,táblázatOsztályPontszámok[Típus],Számítások!AI$5)*Beállítások!K16,"") ->  | AJ13: =SUM(AC13:AI13) -> 0 | AK13: =SUMIFS(Beállítások!E16:K16,Számítások!AC13:AI13,">0") -> 0 | AL13: =IFERROR(AJ13/AK13,"") -> 
C14: =IF(Beállítások!C17="","",Beállítások!C17) ->  | AC14: =IFERROR(AVERAGEIFS(táblázatOsztályPontszámok[Pontszám],táblázatOsztályPontszámok[Tantárgy],Számítások!$C14,táblázatOsztályPontszámok[Típus],Számítások!AC$5)*Beállítások!E17,"") ->  | AD14: =IFERROR(AVERAGEIFS(táblázatOsztályPontszámok[Pontszám],táblázatOsztályPontszámok[Tantárgy],Számítások!$C14,táblázatOsztályPontszámok[Típus],Számítások!AD$5)*Beállítások!F17,"") ->  | AE14: =IFERROR(AVERAGEIFS(táblázatOsztályPontszámok[Pontszám],táblázatOsztályPontszámok[Tantárgy],Számítások!$C14,táblázatOsztályPontszámok[Típus],Számítások!AE$5)*Beállítások!G17,"") ->  | AF14: =IFERROR(AVERAGEIFS(táblázatOsztályPontszámok[Pontszám],táblázatOsztályPontszámok[Tantárgy],Számítások!$C14,táblázatOsztályPontszámok[Típus],Számítások!AF$5)*Beállítások!H17,"") ->  | AG14: =IFERROR(AVERAGEIFS(táblázatOsztályPontszámok[Pontszám],táblázatOsztályPontszámok[Tantárgy],Számítások!$C14,táblázatOsztályPontszámok[Típus],Számítások!AG$5)*Beállítások!I17,"") ->  | AH14: =IFERROR(AVERAGEIFS(táblázatOsztályPontszámok[Pontszám],táblázatOsztályPontszámok[Tantárgy],Számítások!$C14,táblázatOsztályPontszámok[Típus],Számítások!AH$5)*Beállítások!J17,"") ->  | AI14: =IFERROR(AVERAGEIFS(táblázatOsztályPontszámok[Pontszám],táblázatOsztályPontszámok[Tantárgy],Számítások!$C14,táblázatOsztályPontszámok[Típus],Számítások!AI$5)*Beállítások!K17,"") ->  | AJ14: 0 | AK14: =SUMIFS(Beállítások!E17:K17,Számítások!AC14:AI14,">0") -> 0
C15: =IF(Beállítások!C18="","",Beállítások!C18) ->  | AC15: =IFERROR(AVERAGEIFS(táblázatOsztályPontszámok[Pontszám],táblázatOsztályPontszámok[Tantárgy],Számítások!$C15,táblázatOsztályPontszámok[Típus],Számítások!AC$5)*Beállítások!E18,"") ->  | AD15: =IFERROR(AVERAGEIFS(táblázatOsztályPontszámok[Pontszám],táblázatOsztályPontszámok[Tantárgy],Számítások!$C15,táblázatOsztályPontszámok[Típus],Számítások!AD$5)*Beállítások!F18,"") ->  | AE15: =IFERROR(AVERAGEIFS(táblázatOsztályPontszámok[Pontszám],táblázatOsztályPontszámok[Tantárgy],Számítások!$C15,táblázatOsztályPontszámok[Típus],Számítások!AE$5)*Beállítások!G18,"") ->  | AF15: =IFERROR(AVERAGEIFS(táblázatOsztályPontszámok[Pontszám],táblázatOsztályPontszámok[Tantárgy],Számítások!$C15,táblázatOsztályPontszámok[Típus],Számítások!AF$5)*Beállítások!H18,"") ->  | AG15: =IFERROR(AVERAGEIFS(táblázatOsztályPontszámok[Pontszám],táblázatOsztályPontszámok[Tantárgy],Számítások!$C15,táblázatOsztályPontszámok[Típus],Számítások!AG$5)*Beállítások!I18,"") ->  | AH15: =IFERROR(AVERAGEIFS(táblázatOsztályPontszámok[Pontszám],táblázatOsztályPontszámok[Tantárgy],Számítások!$C15,táblázatOsztályPontszámok[Típus],Számítások!AH$5)*Beállítások!J18,"") ->  | AI15: =IFERROR(AVERAGEIFS(táblázatOsztályPontszámok[Pontszám],táblázatOsztályPontszámok[Tantárgy],Számítások!$C15,táblázatOsztályPontszámok[Típus],Számítások!AI$5)*Beállítások!K18,"") ->  | AJ15: 0 | AK15: =SUMIFS(Beállítások!E18:K18,Számítások!AC15:AI15,">0") -> 0
C16: =IF(Beállítások!C19="","",Beállítások!C19) ->  | AC16: =IFERROR(AVERAGEIFS(táblázatOsztályPontszámok[Pontszám],táblázatOsztályPontszámok[Tantárgy],Számítások!$C16,táblázatOsztályPontszámok[Típus],Számítások!AC$5)*Beállítások!E19,"") ->  | AD16: =IFERROR(AVERAGEIFS(táblázatOsztályPontszámok[Pontszám],táblázatOsztályPontszámok[Tantárgy],Számítások!$C16,táblázatOsztályPontszámok[Típus],Számítások!AD$5)*Beállítások!F19,"") ->  | AE16: =IFERROR(AVERAGEIFS(táblázatOsztályPontszámok[Pontszám],táblázatOsztályPontszámok[Tantárgy],Számítások!$C16,táblázatOsztályPontszámok[Típus],Számítások!AE$5)*Beállítások!G19,"") ->  | AF16: =IFERROR(AVERAGEIFS(táblázatOsztályPontszámok[Pontszám],táblázatOsztályPontszámok[Tantárgy],Számítások!$C16,táblázatOsztályPontszámok[Típus],Számítások!AF$5)*Beállítások!H19,"") ->  | AG16: =IFERROR(AVERAGEIFS(táblázatOsztályPontszámok[Pontszám],táblázatOsztályPontszámok[Tantárgy],Számítások!$C16,táblázatOsztályPontszámok[Típus],Számítások!AG$5)*Beállítások!I19,"") ->  | AH16: =IFERROR(AVERAGEIFS(táblázatOsztályPontszámok[Pontszám],táblázatOsztályPontszámok[Tantárgy],Számítások!$C16,táblázatOsztályPontszámok[Típus],Számítások!AH$5)*Beállítások!J19,"") ->  | AI16: =IFERROR(AVERAGEIFS(táblázatOsztályPontszámok[Pontszám],táblázatOsztályPontszámok[Tantárgy],Számítások!$C16,táblázatOsztályPontszámok[Típus],Számítások!AI$5)*Beállítások!K19,"") ->  | AJ16: 0 | AK16: =SUMIFS(Beállítások!E19:K19,Számítások!AC16:AI16,">0") -> 0
C17: =IF(Beállítások!C20="","",Beállítások!C20) ->  | AC17: =IFERROR(AVERAGEIFS(táblázatOsztályPontszámok[Pontszám],táblázatOsztályPontszámok[Tantárgy],Számítások!$C17,táblázatOsztályPontszámok[Típus],Számítások!AC$5)*Beállítások!E20,"") ->  | AD17: =IFERROR(AVERAGEIFS(táblázatOsztályPontszámok[Pontszám],táblázatOsztályPontszámok[Tantárgy],Számítások!$C17,táblázatOsztályPontszámok[Típus],Számítások!AD$5)*Beállítások!F20,"") ->  | AE17: =IFERROR(AVERAGEIFS(táblázatOsztályPontszámok[Pontszám],táblázatOsztályPontszámok[Tantárgy],Számítások!$C17,táblázatOsztályPontszámok[Típus],Számítások!AE$5)*Beállítások!G20,"") ->  | AF17: =IFERROR(AVERAGEIFS(táblázatOsztályPontszámok[Pontszám],táblázatOsztályPontszámok[Tantárgy],Számítások!$C17,táblázatOsztályPontszámok[Típus],Számítások!AF$5)*Beállítások!H20,"") ->  | AG17: =IFERROR(AVERAGEIFS(táblázatOsztályPontszámok[Pontszám],táblázatOsztályPontszámok[Tantárgy],Számítások!$C17,táblázatOsztályPontszámok[Típus],Számítások!AG$5)*Beállítások!I20,"") ->  | AH17: =IFERROR(AVERAGEIFS(táblázatOsztályPontszámok[Pontszám],táblázatOsztályPontszámok[Tantárgy],Számítások!$C17,táblázatOsztályPontszámok[Típus],Számítások!AH$5)*Beállítások!J20,"") ->  | AI17: =IFERROR(AVERAGEIFS(táblázatOsztályPontszámok[Pontszám],táblázatOsztályPontszámok[Tantárgy],Számítások!$C17,táblázatOsztályPontszámok[Típus],Számítások!AI$5)*Beállítások!K20,"") ->  | AJ17: 0 | AK17: =SUMIFS(Beállítások!E20:K20,Számítások!AC17:AI17,">0") -> 0
C18: =IF(Beállítások!C21="","",Beállítások!C21) ->  | AC18: =IFERROR(AVERAGEIFS(táblázatOsztályPontszámok[Pontszám],táblázatOsztályPontszámok[Tantárgy],Számítások!$C18,táblázatOsztályPontszámok[Típus],Számítások!AC$5)*Beállítások!E21,"") ->  | AD18: =IFERROR(AVERAGEIFS(táblázatOsztályPontszámok[Pontszám],táblázatOsztályPontszámok[Tantárgy],Számítások!$C18,táblázatOsztályPontszámok[Típus],Számítások!AD$5)*Beállítások!F21,"") ->  | AE18: =IFERROR(AVERAGEIFS(táblázatOsztályPontszámok[Pontszám],táblázatOsztályPontszámok[Tantárgy],Számítások!$C18,táblázatOsztályPontszámok[Típus],Számítások!AE$5)*Beállítások!G21,"") ->  | AF18: =IFERROR(AVERAGEIFS(táblázatOsztályPontszámok[Pontszám],táblázatOsztályPontszámok[Tantárgy],Számítások!$C18,táblázatOsztályPontszámok[Típus],Számítások!AF$5)*Beállítások!H21,"") ->  | AG18: =IFERROR(AVERAGEIFS(táblázatOsztályPontszámok[Pontszám],táblázatOsztályPontszámok[Tantárgy],Számítások!$C18,táblázatOsztályPontszámok[Típus],Számítások!AG$5)*Beállítások!I21,"") ->  | AH18: =IFERROR(AVERAGEIFS(táblázatOsztályPontszámok[Pontszám],táblázatOsztályPontszámok[Tantárgy],Számítások!$C18,táblázatOsztályPontszámok[Típus],Számítások!AH$5)*Beállítások!J21,"") ->  | AI18: =IFERROR(AVERAGEIFS(táblázatOsztályPontszámok[Pontszám],táblázatOsztályPontszámok[Tantárgy],Számítások!$C18,táblázatOsztályPontszámok[Típus],Számítások!AI$5)*Beállítások!K21,"") ->  | AJ18: 0 | AK18: =SUMIFS(Beállítások!E21:K21,Számítások!AC18:AI18,">0") -> 0
C19: =IF(Beállítások!C22="","",Beállítások!C22) ->  | AC19: =IFERROR(AVERAGEIFS(táblázatOsztályPontszámok[Pontszám],táblázatOsztályPontszámok[Tantárgy],Számítások!$C19,táblázatOsztályPontszámok[Típus],Számítások!AC$5)*Beállítások!E22,"") ->  | AD19: =IFERROR(AVERAGEIFS(táblázatOsztályPontszámok[Pontszám],táblázatOsztályPontszámok[Tantárgy],Számítások!$C19,táblázatOsztályPontszámok[Típus],Számítások!AD$5)*Beállítások!F22,"") ->  | AE19: =IFERROR(AVERAGEIFS(táblázatOsztályPontszámok[Pontszám],táblázatOsztályPontszámok[Tantárgy],Számítások!$C19,táblázatOsztályPontszámok[Típus],Számítások!AE$5)*Beállítások!G22,"") ->  | AF19: =IFERROR(AVERAGEIFS(táblázatOsztályPontszámok[Pontszám],táblázatOsztályPontszámok[Tantárgy],Számítások!$C19,táblázatOsztályPontszámok[Típus],Számítások!AF$5)*Beállítások!H22,"") ->  | AG19: =IFERROR(AVERAGEIFS(táblázatOsztályPontszámok[Pontszám],táblázatOsztályPontszámok[Tantárgy],Számítások!$C19,táblázatOsztályPontszámok[Típus],Számítások!AG$5)*Beállítások!I22,"") ->  | AH19: =IFERROR(AVERAGEIFS(táblázatOsztályPontszámok[Pontszám],táblázatOsztályPontszámok[Tantárgy],Számítások!$C19,táblázatOsztályPontszámok[Típus],Számítások!AH$5)*Beállítások!J22,"") ->  | AI19: =IFERROR(AVERAGEIFS(táblázatOsztályPontszámok[Pontszám],táblázatOsztályPontszámok[Tantárgy],Számítások!$C19,táblázatOsztályPontszámok[Típus],Számítások!AI$5)*Beállítások!K22,"") ->  | AJ19: 0 | AK19: =SUMIFS(Beállítások!E22:K22,Számítások!AC19:AI19,">0") -> 0
C20: =IF(Beállítások!C23="","",Beállítások!C23) ->  | AC20: =IFERROR(AVERAGEIFS(táblázatOsztályPontszámok[Pontszám],táblázatOsztályPontszámok[Tantárgy],Számítások!$C20,táblázatOsztályPontszámok[Típus],Számítások!AC$5)*Beállítások!E23,"") ->  | AD20: =IFERROR(AVERAGEIFS(táblázatOsztályPontszámok[Pontszám],táblázatOsztályPontszámok[Tantárgy],Számítások!$C20,táblázatOsztályPontszámok[Típus],Számítások!AD$5)*Beállítások!F23,"") ->  | AE20: =IFERROR(AVERAGEIFS(táblázatOsztályPontszámok[Pontszám],táblázatOsztályPontszámok[Tantárgy],Számítások!$C20,táblázatOsztályPontszámok[Típus],Számítások!AE$5)*Beállítások!G23,"") ->  | AF20: =IFERROR(AVERAGEIFS(táblázatOsztályPontszámok[Pontszám],táblázatOsztályPontszámok[Tantárgy],Számítások!$C20,táblázatOsztályPontszámok[Típus],Számítások!AF$5)*Beállítások!H23,"") ->  | AG20: =IFERROR(AVERAGEIFS(táblázatOsztályPontszámok[Pontszám],táblázatOsztályPontszámok[Tantárgy],Számítások!$C20,táblázatOsztályPontszámok[Típus],Számítások!AG$5)*Beállítások!I23,"") ->  | AH20: =IFERROR(AVERAGEIFS(táblázatOsztályPontszámok[Pontszám],táblázatOsztályPontszámok[Tantárgy],Számítások!$C20,táblázatOsztályPontszámok[Típus],Számítások!AH$5)*Beállítások!J23,"") ->  | AI20: =IFERROR(AVERAGEIFS(táblázatOsztályPontszámok[Pontszám],táblázatOsztályPontszámok[Tantárgy],Számítások!$C20,táblázatOsztályPontszámok[Típus],Számítások!AI$5)*Beállítások!K23,"") ->  | AJ20: 0 | AK20: =SUMIFS(Beállítások!E23:K23,Számítások!AC20:AI20,">0") -> 0
C21: =IF(Beállítások!C24="","",Beállítások!C24) ->  | AC21: =IFERROR(AVERAGEIFS(táblázatOsztályPontszámok[Pontszám],táblázatOsztályPontszámok[Tantárgy],Számítások!$C21,táblázatOsztályPontszámok[Típus],Számítások!AC$5)*Beállítások!E24,"") ->  | AD21: =IFERROR(AVERAGEIFS(táblázatOsztályPontszámok[Pontszám],táblázatOsztályPontszámok[Tantárgy],Számítások!$C21,táblázatOsztályPontszámok[Típus],Számítások!AD$5)*Beállítások!F24,"") ->  | AE21: =IFERROR(AVERAGEIFS(táblázatOsztályPontszámok[Pontszám],táblázatOsztályPontszámok[Tantárgy],Számítások!$C21,táblázatOsztályPontszámok[Típus],Számítások!AE$5)*Beállítások!G24,"") ->  | AF21: =IFERROR(AVERAGEIFS(táblázatOsztályPontszámok[Pontszám],táblázatOsztályPontszámok[Tantárgy],Számítások!$C21,táblázatOsztályPontszámok[Típus],Számítások!AF$5)*Beállítások!H24,"") ->  | AG21: =IFERROR(AVERAGEIFS(táblázatOsztályPontszámok[Pontszám],táblázatOsztályPontszámok[Tantárgy],Számítások!$C21,táblázatOsztályPontszámok[Típus],Számítások!AG$5)*Beállítások!I24,"") ->  | AH21: =IFERROR(AVERAGEIFS(táblázatOsztályPontszámok[Pontszám],táblázatOsztályPontszámok[Tantárgy],Számítások!$C21,táblázatOsztályPontszámok[Típus],Számítások!AH$5)*Beállítások!J24,"") ->  | AI21: =IFERROR(AVERAGEIFS(táblázatOsztályPontszámok[Pontszám],táblázatOsztályPontszámok[Tantárgy],Számítások!$C21,táblázatOsztályPontszámok[Típus],Számítások!AI$5)*Beállítások!K24,"") ->  | AJ21: 0 | AK21: =SUMIFS(Beállítások!E24:K24,Számítások!AC21:AI21,">0") -> 0
C22: =IF(Beállítások!C25="","",Beállítások!C25) ->  | AC22: =IFERROR(AVERAGEIFS(táblázatOsztályPontszámok[Pontszám],táblázatOsztályPontszámok[Tantárgy],Számítások!$C22,táblázatOsztályPontszámok[Típus],Számítások!AC$5)*Beállítások!E25,"") ->  | AD22: =IFERROR(AVERAGEIFS(táblázatOsztályPontszámok[Pontszám],táblázatOsztályPontszámok[Tantárgy],Számítások!$C22,táblázatOsztályPontszámok[Típus],Számítások!AD$5)*Beállítások!F25,"") ->  | AE22: =IFERROR(AVERAGEIFS(táblázatOsztályPontszámok[Pontszám],táblázatOsztályPontszámok[Tantárgy],Számítások!$C22,táblázatOsztályPontszámok[Típus],Számítások!AE$5)*Beállítások!G25,"") ->  | AF22: =IFERROR(AVERAGEIFS(táblázatOsztályPontszámok[Pontszám],táblázatOsztályPontszámok[Tantárgy],Számítások!$C22,táblázatOsztályPontszámok[Típus],Számítások!AF$5)*Beállítások!H25,"") ->  | AG22: =IFERROR(AVERAGEIFS(táblázatOsztályPontszámok[Pontszám],táblázatOsztályPontszámok[Tantárgy],Számítások!$C22,táblázatOsztályPontszámok[Típus],Számítások!AG$5)*Beállítások!I25,"") ->  | AH22: =IFERROR(AVERAGEIFS(táblázatOsztályPontszámok[Pontszám],táblázatOsztályPontszámok[Tantárgy],Számítások!$C22,táblázatOsztályPontszámok[Típus],Számítások!AH$5)*Beállítások!J25,"") ->  | AI22: =IFERROR(AVERAGEIFS(táblázatOsztályPontszámok[Pontszám],táblázatOsztályPontszámok[Tantárgy],Számítások!$C22,táblázatOsztályPontszámok[Típus],Számítások!AI$5)*Beállítások!K25,"") ->  | AJ22: 0 | AK22: =SUMIFS(Beállítások!E25:K25,Számítások!AC22:AI22,">0") -> 0
C23: =IF(Beállítások!C26="","",Beállítások!C26) ->  | AC23: =IFERROR(AVERAGEIFS(táblázatOsztályPontszámok[Pontszám],táblázatOsztályPontszámok[Tantárgy],Számítások!$C23,táblázatOsztályPontszámok[Típus],Számítások!AC$5)*Beállítások!E26,"") ->  | AD23: =IFERROR(AVERAGEIFS(táblázatOsztályPontszámok[Pontszám],táblázatOsztályPontszámok[Tantárgy],Számítások!$C23,táblázatOsztályPontszámok[Típus],Számítások!AD$5)*Beállítások!F26,"") ->  | AE23: =IFERROR(AVERAGEIFS(táblázatOsztályPontszámok[Pontszám],táblázatOsztályPontszámok[Tantárgy],Számítások!$C23,táblázatOsztályPontszámok[Típus],Számítások!AE$5)*Beállítások!G26,"") ->  | AF23: =IFERROR(AVERAGEIFS(táblázatOsztályPontszámok[Pontszám],táblázatOsztályPontszámok[Tantárgy],Számítások!$C23,táblázatOsztályPontszámok[Típus],Számítások!AF$5)*Beállítások!H26,"") ->  | AG23: =IFERROR(AVERAGEIFS(táblázatOsztályPontszámok[Pontszám],táblázatOsztályPontszámok[Tantárgy],Számítások!$C23,táblázatOsztályPontszámok[Típus],Számítások!AG$5)*Beállítások!I26,"") ->  | AH23: =IFERROR(AVERAGEIFS(táblázatOsztályPontszámok[Pontszám],táblázatOsztályPontszámok[Tantárgy],Számítások!$C23,táblázatOsztályPontszámok[Típus],Számítások!AH$5)*Beállítások!J26,"") ->  | AI23: =IFERROR(AVERAGEIFS(táblázatOsztályPontszámok[Pontszám],táblázatOsztályPontszámok[Tantárgy],Számítások!$C23,táblázatOsztályPontszámok[Típus],Számítások!AI$5)*Beállítások!K26,"") ->  | AJ23: 0 | AK23: =SUMIFS(Beállítások!E26:K26,Számítások!AC23:AI23,">0") -> 0
C24: =IF(Beállítások!C27="","",Beállítások!C27) ->  | AC24: =IFERROR(AVERAGEIFS(táblázatOsztályPontszámok[Pontszám],táblázatOsztályPontszámok[Tantárgy],Számítások!$C24,táblázatOsztályPontszámok[Típus],Számítások!AC$5)*Beállítások!E27,"") ->  | AD24: =IFERROR(AVERAGEIFS(táblázatOsztályPontszámok[Pontszám],táblázatOsztályPontszámok[Tantárgy],Számítások!$C24,táblázatOsztályPontszámok[Típus],Számítások!AD$5)*Beállítások!F27,"") ->  | AE24: =IFERROR(AVERAGEIFS(táblázatOsztályPontszámok[Pontszám],táblázatOsztályPontszámok[Tantárgy],Számítások!$C24,táblázatOsztályPontszámok[Típus],Számítások!AE$5)*Beállítások!G27,"") ->  | AF24: =IFERROR(AVERAGEIFS(táblázatOsztályPontszámok[Pontszám],táblázatOsztályPontszámok[Tantárgy],Számítások!$C24,táblázatOsztályPontszámok[Típus],Számítások!AF$5)*Beállítások!H27,"") ->  | AG24: =IFERROR(AVERAGEIFS(táblázatOsztályPontszámok[Pontszám],táblázatOsztályPontszámok[Tantárgy],Számítások!$C24,táblázatOsztályPontszámok[Típus],Számítások!AG$5)*Beállítások!I27,"") ->  | AH24: =IFERROR(AVERAGEIFS(táblázatOsztályPontszámok[Pontszám],táblázatOsztályPontszámok[Tantárgy],Számítások!$C24,táblázatOsztályPontszámok[Típus],Számítások!AH$5)*Beállítások!J27,"") ->  | AI24: =IFERROR(AVERAGEIFS(táblázatOsztályPontszámok[Pontszám],táblázatOsztályPontszámok[Tantárgy],Számítások!$C24,táblázatOsztályPontszámok[Típus],Számítások!AI$5)*Beállítások!K27,"") ->  | AJ24: 0 | AK24: =SUMIFS(Beállítások!E27:K27,Számítások!AC24:AI24,">0") -> 0
C25: =IF(Beállítások!C28="","",Beállítások!C28) ->  | AC25: =IFERROR(AVERAGEIFS(táblázatOsztályPontszámok[Pontszám],táblázatOsztályPontszámok[Tantárgy],Számítások!$C25,táblázatOsztályPontszámok[Típus],Számítások!AC$5)*Beállítások!E28,"") ->  | AD25: =IFERROR(AVERAGEIFS(táblázatOsztályPontszámok[Pontszám],táblázatOsztályPontszámok[Tantárgy],Számítások!$C25,táblázatOsztályPontszámok[Típus],Számítások!AD$5)*Beállítások!F28,"") ->  | AE25: =IFERROR(AVERAGEIFS(táblázatOsztályPontszámok[Pontszám],táblázatOsztályPontszámok[Tantárgy],Számítások!$C25,táblázatOsztályPontszámok[Típus],Számítások!AE$5)*Beállítások!G28,"") ->  | AF25: =IFERROR(AVERAGEIFS(táblázatOsztályPontszámok[Pontszám],táblázatOsztályPontszámok[Tantárgy],Számítások!$C25,táblázatOsztályPontszámok[Típus],Számítások!AF$5)*Beállítások!H28,"") ->  | AG25: =IFERROR(AVERAGEIFS(táblázatOsztályPontszámok[Pontszám],táblázatOsztályPontszámok[Tantárgy],Számítások!$C25,táblázatOsztályPontszámok[Típus],Számítások!AG$5)*Beállítások!I28,"") ->  | AH25: =IFERROR(AVERAGEIFS(táblázatOsztályPontszámok[Pontszám],táblázatOsztályPontszámok[Tantárgy],Számítások!$C25,táblázatOsztályPontszámok[Típus],Számítások!AH$5)*Beállítások!J28,"") ->  | AI25: =IFERROR(AVERAGEIFS(táblázatOsztályPontszámok[Pontszám],táblázatOsztályPontszámok[Tantárgy],Számítások!$C25,táblázatOsztályPontszámok[Típus],Számítások!AI$5)*Beállítások!K28,"") ->  | AJ25: 0 | AK25: =SUMIFS(Beállítások!E28:K28,Számítások!AC25:AI25,">0") -> 0
C26: =IF(Beállítások!C29="","",Beállítások!C29) ->  | AC26: =IFERROR(AVERAGEIFS(táblázatOsztályPontszámok[Pontszám],táblázatOsztályPontszámok[Tantárgy],Számítások!$C26,táblázatOsztályPontszámok[Típus],Számítások!AC$5)*Beállítások!E29,"") ->  | AD26: =IFERROR(AVERAGEIFS(táblázatOsztályPontszámok[Pontszám],táblázatOsztályPontszámok[Tantárgy],Számítások!$C26,táblázatOsztályPontszámok[Típus],Számítások!AD$5)*Beállítások!F29,"") ->  | AE26: =IFERROR(AVERAGEIFS(táblázatOsztályPontszámok[Pontszám],táblázatOsztályPontszámok[Tantárgy],Számítások!$C26,táblázatOsztályPontszámok[Típus],Számítások!AE$5)*Beállítások!G29,"") ->  | AF26: =IFERROR(AVERAGEIFS(táblázatOsztályPontszámok[Pontszám],táblázatOsztályPontszámok[Tantárgy],Számítások!$C26,táblázatOsztályPontszámok[Típus],Számítások!AF$5)*Beállítások!H29,"") ->  | AG26: =IFERROR(AVERAGEIFS(táblázatOsztályPontszámok[Pontszám],táblázatOsztályPontszámok[Tantárgy],Számítások!$C26,táblázatOsztályPontszámok[Típus],Számítások!AG$5)*Beállítások!I29,"") ->  | AH26: =IFERROR(AVERAGEIFS(táblázatOsztályPontszámok[Pontszám],táblázatOsztályPontszámok[Tantárgy],Számítások!$C26,táblázatOsztályPontszámok[Típus],Számítások!AH$5)*Beállítások!J29,"") ->  | AI26: =IFERROR(AVERAGEIFS(táblázatOsztályPontszámok[Pontszám],táblázatOsztályPontszámok[Tantárgy],Számítások!$C26,táblázatOsztályPontszámok[Típus],Számítások!AI$5)*Beállítások!K29,"") ->  | AJ26: 0 | AK26: =SUMIFS(Beállítások!E29:K29,Számítások!AC26:AI26,">0") -> 0
C27: =IF(Beállítások!C30="","",Beállítások!C30) ->  | AC27: =IFERROR(AVERAGEIFS(táblázatOsztályPontszámok[Pontszám],táblázatOsztályPontszámok[Tantárgy],Számítások!$C27,táblázatOsztályPontszámok[Típus],Számítások!AC$5)*Beállítások!E30,"") ->  | AD27: =IFERROR(AVERAGEIFS(táblázatOsztályPontszámok[Pontszám],táblázatOsztályPontszámok[Tantárgy],Számítások!$C27,táblázatOsztályPontszámok[Típus],Számítások!AD$5)*Beállítások!F30,"") ->  | AE27: =IFERROR(AVERAGEIFS(táblázatOsztályPontszámok[Pontszám],táblázatOsztályPontszámok[Tantárgy],Számítások!$C27,táblázatOsztályPontszámok[Típus],Számítások!AE$5)*Beállítások!G30,"") ->  | AF27: =IFERROR(AVERAGEIFS(táblázatOsztályPontszámok[Pontszám],táblázatOsztályPontszámok[Tantárgy],Számítások!$C27,táblázatOsztályPontszámok[Típus],Számítások!AF$5)*Beállítások!H30,"") ->  | AG27: =IFERROR(AVERAGEIFS(táblázatOsztályPontszámok[Pontszám],táblázatOsztályPontszámok[Tantárgy],Számítások!$C27,táblázatOsztályPontszámok[Típus],Számítások!AG$5)*Beállítások!I30,"") ->  | AH27: =IFERROR(AVERAGEIFS(táblázatOsztályPontszámok[Pontszám],táblázatOsztályPontszámok[Tantárgy],Számítások!$C27,táblázatOsztályPontszámok[Típus],Számítások!AH$5)*Beállítások!J30,"") ->  | AI27: =IFERROR(AVERAGEIFS(táblázatOsztályPontszámok[Pontszám],táblázatOsztályPontszámok[Tantárgy],Számítások!$C27,táblázatOsztályPontszámok[Típus],Számítások!AI$5)*Beállítások!K30,"") ->  | AJ27: 0 | AK27: =SUMIFS(Beállítások!E30:K30,Számítások!AC27:AI27,">0") -> 0
C28: =IF(Beállítások!C31="","",Beállítások!C31) ->  | AC28: =IFERROR(AVERAGEIFS(táblázatOsztályPontszámok[Pontszám],táblázatOsztályPontszámok[Tantárgy],Számítások!$C28,táblázatOsztályPontszámok[Típus],Számítások!AC$5)*Beállítások!E31,"") ->  | AD28: =IFERROR(AVERAGEIFS(táblázatOsztályPontszámok[Pontszám],táblázatOsztályPontszámok[Tantárgy],Számítások!$C28,táblázatOsztályPontszámok[Típus],Számítások!AD$5)*Beállítások!F31,"") ->  | AE28: =IFERROR(AVERAGEIFS(táblázatOsztályPontszámok[Pontszám],táblázatOsztályPontszámok[Tantárgy],Számítások!$C28,táblázatOsztályPontszámok[Típus],Számítások!AE$5)*Beállítások!G31,"") ->  | AF28: =IFERROR(AVERAGEIFS(táblázatOsztályPontszámok[Pontszám],táblázatOsztályPontszámok[Tantárgy],Számítások!$C28,táblázatOsztályPontszámok[Típus],Számítások!AF$5)*Beállítások!H31,"") ->  | AG28: =IFERROR(AVERAGEIFS(táblázatOsztályPontszámok[Pontszám],táblázatOsztályPontszámok[Tantárgy],Számítások!$C28,táblázatOsztályPontszámok[Típus],Számítások!AG$5)*Beállítások!I31,"") ->  | AH28: =IFERROR(AVERAGEIFS(táblázatOsztályPontszámok[Pontszám],táblázatOsztályPontszámok[Tantárgy],Számítások!$C28,táblázatOsztályPontszámok[Típus],Számítások!AH$5)*Beállítások!J31,"") ->  | AI28: =IFERROR(AVERAGEIFS(táblázatOsztályPontszámok[Pontszám],táblázatOsztályPontszámok[Tantárgy],Számítások!$C28,táblázatOsztályPontszámok[Típus],Számítások!AI$5)*Beállítások!K31,"") ->  | AJ28: 0 | AK28: =SUMIFS(Beállítások!E31:K31,Számítások!AC28:AI28,">0") -> 0
C29: =IF(Beállítások!C32="","",Beállítások!C32) ->  | AC29: =IFERROR(AVERAGEIFS(táblázatOsztályPontszámok[Pontszám],táblázatOsztályPontszámok[Tantárgy],Számítások!$C29,táblázatOsztályPontszámok[Típus],Számítások!AC$5)*Beállítások!E32,"") ->  | AD29: =IFERROR(AVERAGEIFS(táblázatOsztályPontszámok[Pontszám],táblázatOsztályPontszámok[Tantárgy],Számítások!$C29,táblázatOsztályPontszámok[Típus],Számítások!AD$5)*Beállítások!F32,"") ->  | AE29: =IFERROR(AVERAGEIFS(táblázatOsztályPontszámok[Pontszám],táblázatOsztályPontszámok[Tantárgy],Számítások!$C29,táblázatOsztályPontszámok[Típus],Számítások!AE$5)*Beállítások!G32,"") ->  | AF29: =IFERROR(AVERAGEIFS(táblázatOsztályPontszámok[Pontszám],táblázatOsztályPontszámok[Tantárgy],Számítások!$C29,táblázatOsztályPontszámok[Típus],Számítások!AF$5)*Beállítások!H32,"") ->  | AG29: =IFERROR(AVERAGEIFS(táblázatOsztályPontszámok[Pontszám],táblázatOsztályPontszámok[Tantárgy],Számítások!$C29,táblázatOsztályPontszámok[Típus],Számítások!AG$5)*Beállítások!I32,"") ->  | AH29: =IFERROR(AVERAGEIFS(táblázatOsztályPontszámok[Pontszám],táblázatOsztályPontszámok[Tantárgy],Számítások!$C29,táblázatOsztályPontszámok[Típus],Számítások!AH$5)*Beállítások!J32,"") ->  | AI29: =IFERROR(AVERAGEIFS(táblázatOsztályPontszámok[Pontszám],táblázatOsztályPontszámok[Tantárgy],Számítások!$C29,táblázatOsztályPontszámok[Típus],Számítások!AI$5)*Beállítások!K32,"") ->  | AJ29: 0 | AK29: =SUMIFS(Beállítások!E32:K32,Számítások!AC29:AI29,">0") -> 0
C30: =IF(Beállítások!C33="","",Beállítások!C33) ->  | AC30: =IFERROR(AVERAGEIFS(táblázatOsztályPontszámok[Pontszám],táblázatOsztályPontszámok[Tantárgy],Számítások!$C30,táblázatOsztályPontszámok[Típus],Számítások!AC$5)*Beállítások!E33,"") ->  | AD30: =IFERROR(AVERAGEIFS(táblázatOsztályPontszámok[Pontszám],táblázatOsztályPontszámok[Tantárgy],Számítások!$C30,táblázatOsztályPontszámok[Típus],Számítások!AD$5)*Beállítások!F33,"") ->  | AE30: =IFERROR(AVERAGEIFS(táblázatOsztályPontszámok[Pontszám],táblázatOsztályPontszámok[Tantárgy],Számítások!$C30,táblázatOsztályPontszámok[Típus],Számítások!AE$5)*Beállítások!G33,"") ->  | AF30: =IFERROR(AVERAGEIFS(táblázatOsztályPontszámok[Pontszám],táblázatOsztályPontszámok[Tantárgy],Számítások!$C30,táblázatOsztályPontszámok[Típus],Számítások!AF$5)*Beállítások!H33,"") ->  | AG30: =IFERROR(AVERAGEIFS(táblázatOsztályPontszámok[Pontszám],táblázatOsztályPontszámok[Tantárgy],Számítások!$C30,táblázatOsztályPontszámok[Típus],Számítások!AG$5)*Beállítások!I33,"") ->  | AH30: =IFERROR(AVERAGEIFS(táblázatOsztályPontszámok[Pontszám],táblázatOsztályPontszámok[Tantárgy],Számítások!$C30,táblázatOsztályPontszámok[Típus],Számítások!AH$5)*Beállítások!J33,"") ->  | AI30: =IFERROR(AVERAGEIFS(táblázatOsztályPontszámok[Pontszám],táblázatOsztályPontszámok[Tantárgy],Számítások!$C30,táblázatOsztályPontszámok[Típus],Számítások!AI$5)*Beállítások!K33,"") ->  | AJ30: 0 | AK30: =SUMIFS(Beállítások!E33:K33,Számítások!AC30:AI30,">0") -> 0
B33: 1 | C33: =Pontszámkövető!C4&COUNTIF(Pontszámkövető!$C$4:C4,Pontszámkövető!C4) -> Modern francia1
B34: 2 | C34: =Pontszámkövető!C5&COUNTIF(Pontszámkövető!$C$4:C5,Pontszámkövető!C5) -> Haladó Java-programozás1
B35: 3 | C35: =Pontszámkövető!C6&COUNTIF(Pontszámkövető!$C$4:C6,Pontszámkövető!C6) -> Spanyol1
B36: 4 | C36: =Pontszámkövető!C7&COUNTIF(Pontszámkövető!$C$4:C7,Pontszámkövető!C7) -> Elméleti fizika1
B37: 5 | C37: =Pontszámkövető!C8&COUNTIF(Pontszámkövető!$C$4:C8,Pontszámkövető!C8) -> Modern francia2
B38: 6 | C38: =Pontszámkövető!C9&COUNTIF(Pontszámkövető!$C$4:C9,Pontszámkövető!C9) -> Modern francia3
B39: 7 | C39: =Pontszámkövető!C10&COUNTIF(Pontszámkövető!$C$4:C10,Pontszámkövető!C10) -> Fogalmazás1
B40: 8 | C40: =Pontszámkövető!C11&COUNTIF(Pontszámkövető!$C$4:C11,Pontszámkövető!C11) -> Matematika 11
B41: 9 | C41: =Pontszámkövető!C12&COUNTIF(Pontszámkövető!$C$4:C12,Pontszámkövető!C12) -> Matematika 21
B42: 10 | C42: =Pontszámkövető!C13&COUNTIF(Pontszámkövető!$C$4:C13,Pontszámkövető!C13) -> Matematika 12
B43: 11 | C43: =Pontszámkövető!C14&COUNTIF(Pontszámkövető!$C$4:C14,Pontszámkövető!C14) -> Matematika 22
B44: 12 | C44: =Pontszámkövető!C15&COUNTIF(Pontszámkövető!$C$4:C15,Pontszámkövető!C15) -> 0
B45: 13 | C45: =Pontszámkövető!C16&COUNTIF(Pontszámkövető!$C$4:C16,Pontszámkövető!C16) -> 0
B46: 14 | C46: =Pontszámkövető!C17&COUNTIF(Pontszámkövető!$C$4:C17,Pontszámkövető!C17) -> 0
B47: 15 | C47: =Pontszámkövető!C18&COUNTIF(Pontszámkövető!$C$4:C18,Pontszámkövető!C18) -> 0
B48: 16 | C48: =Pontszámkövető!C19&COUNTIF(Pontszámkövető!$C$4:C19,Pontszámkövető!C19) -> 0
B49: 17 | C49: =Pontszámkövető!C20&COUNTIF(Pontszámkövető!$C$4:C20,Pontszámkövető!C20) -> 0
B50: 18 | C50: =Pontszámkövető!C21&COUNTIF(Pontszámkövető!$C$4:C21,Pontszámkövető!C21) -> 0
B51: 19 | C51: =Pontszámkövető!C22&COUNTIF(Pontszámkövető!$C$4:C22,Pontszámkövető!C22) -> 0
B52: 20 | C52: =Pontszámkövető!C23&COUNTIF(Pontszámkövető!$C$4:C23,Pontszámkövető!C23) -> 0
B53: 21 | C53: =Pontszámkövető!C24&COUNTIF(Pontszámkövető!$C$4:C24,Pontszámkövető!C24) -> 0
B54: 22 | C54: =Pontszámkövető!C25&COUNTIF(Pontszámkövető!$C$4:C25,Pontszámkövető!C25) -> 0
B55: 23 | C55: =Pontszámkövető!C26&COUNTIF(Pontszámkövető!$C$4:C26,Pontszámkövető!C26) -> 0
B56: 24 | C56: =Pontszámkövető!C27&COUNTIF(Pontszámkövető!$C$4:C27,Pontszámkövető!C27) -> 0
B57: 25 | C57: =Pontszámkövető!C28&COUNTIF(Pontszámkövető!$C$4:C28,Pontszámkövető!C28) -> 0
B58: 26 | C58: =Pontszámkövető!C29&COUNTIF(Pontszámkövető!$C$4:C29,Pontszámkövető!C29) -> 0
B59: 27 | C59: =Pontszámkövető!C30&COUNTIF(Pontszámkövető!$C$4:C30,Pontszámkövető!C30) -> 0
B60: 28 | C60: =Pontszámkövető!C31&COUNTIF(Pontszámkövető!$C$4:C31,Pontszámkövető!C31) -> 0
B61: 29 | C61: =Pontszámkövető!C32&COUNTIF(Pontszámkövető!$C$4:C32,Pontszámkövető!C32) -> 0
B62: 30 | C62: =Pontszámkövető!C33&COUNTIF(Pontszámkövető!$C$4:C33,Pontszámkövető!C33) -> 0
B63: 31 | C63: =Pontszámkövető!C34&COUNTIF(Pontszámkövető!$C$4:C34,Pontszámkövető!C34) -> 0
B64: 32 | C64: =Pontszámkövető!C35&COUNTIF(Pontszámkövető!$C$4:C35,Pontszámkövető!C35) -> 0
B65: 33 | C65: =Pontszámkövető!C36&COUNTIF(Pontszámkövető!$C$4:C36,Pontszámkövető!C36) -> 0
B66: 34 | C66: =Pontszámkövető!C37&COUNTIF(Pontszámkövető!$C$4:C37,Pontszámkövető!C37) -> 0
B67: 35 | C67: =Pontszámkövető!C38&COUNTIF(Pontszámkövető!$C$4:C38,Pontszámkövető!C38) -> 0
B68: 36 | C68: =Pontszámkövető!C39&COUNTIF(Pontszámkövető!$C$4:C39,Pontszámkövető!C39) -> 0
B69: 37 | C69: =Pontszámkövető!C40&COUNTIF(Pontszámkövető!$C$4:C40,Pontszámkövető!C40) -> 0
B70: 38 | C70: =Pontszámkövető!C41&COUNTIF(Pontszámkövető!$C$4:C41,Pontszámkövető!C41) -> 0
B71: 39 | C71: =Pontszámkövető!C42&COUNTIF(Pontszámkövető!$C$4:C42,Pontszámkövető!C42) -> 0
B72: 40 | C72: =Pontszámkövető!C43&COUNTIF(Pontszámkövető!$C$4:C43,Pontszámkövető!C43) -> 0
B73: 41 | C73: =Pontszámkövető!C44&COUNTIF(Pontszámkövető!$C$4:C44,Pontszámkövető!C44) -> 0
B74: 42 | C74: =Pontszámkövető!C45&COUNTIF(Pontszámkövető!$C$4:C45,Pontszámkövető!C45) -> 0
B75: 43 | C75: =Pontszámkövető!C46&COUNTIF(Pontszámkövető!$C$4:C46,Pontszámkövető!C46) -> 0
B76: 44 | C76: =Pontszámkövető!C47&COUNTIF(Pontszámkövető!$C$4:C47,Pontszámkövető!C47) -> 0
B77: 45 | C77: =Pontszámkövető!C48&COUNTIF(Pontszámkövető!$C$4:C48,Pontszámkövető!C48) -> 0
B78: 46 | C78: =Pontszámkövető!C49&COUNTIF(Pontszámkövető!$C$4:C49,Pontszámkövető!C49) -> 0
B79: 47 | C79: =Pontszámkövető!C50&COUNTIF(Pontszámkövető!$C$4:C50,Pontszámkövető!C50) -> 0
B80: 48 | C80: =Pontszámkövető!C51&COUNTIF(Pontszámkövető!$C$4:C51,Pontszámkövető!C51) -> 0
B81: 49 | C81: =Pontszámkövető!C52&COUNTIF(Pontszámkövető!$C$4:C52,Pontszámkövető!C52) -> 0
B82: 50 | C82: =Pontszámkövető!C53&COUNTIF(Pontszámkövető!$C$4:C53,Pontszámkövető!C53) -> 0
B83: 51 | C83: =Pontszámkövető!C54&COUNTIF(Pontszámkövető!$C$4:C54,Pontszámkövető!C54) -> 0
B84: 52 | C84: =Pontszámkövető!C55&COUNTIF(Pontszámkövető!$C$4:C55,Pontszámkövető!C55) -> 0
B85: 53 | C85: =Pontszámkövető!C56&COUNTIF(Pontszámkövető!$C$4:C56,Pontszámkövető!C56) -> 0
B86: 54 | C86: =Pontszámkövető!C57&COUNTIF(Pontszámkövető!$C$4:C57,Pontszámkövető!C57) -> 0
B87: 55 | C87: =Pontszámkövető!C58&COUNTIF(Pontszámkövető!$C$4:C58,Pontszámkövető!C58) -> 0
B88: 56 | C88: =Pontszámkövető!C59&COUNTIF(Pontszámkövető!$C$4:C59,Pontszámkövető!C59) -> 0
B89: 57 | C89: =Pontszámkövető!C60&COUNTIF(Pontszámkövető!$C$4:C60,Pontszámkövető!C60) -> 0
B90: 58 | C90: =Pontszámkövető!C61&COUNTIF(Pontszámkövető!$C$4:C61,Pontszámkövető!C61) -> 0
B91: 59 | C91: =Pontszámkövető!C62&COUNTIF(Pontszámkövető!$C$4:C62,Pontszámkövető!C62) -> 0
B92: 60 | C92: =Pontszámkövető!C63&COUNTIF(Pontszámkövető!$C$4:C63,Pontszámkövető!C63) -> 0
B93: 61 | C93: =Pontszámkövető!C64&COUNTIF(Pontszámkövető!$C$4:C64,Pontszámkövető!C64) -> 0
B94: 62 | C94: =Pontszámkövető!C65&COUNTIF(Pontszámkövető!$C$4:C65,Pontszámkövető!C65) -> 0
B95: 63 | C95: =Pontszámkövető!C66&COUNTIF(Pontszámkövető!$C$4:C66,Pontszámkövető!C66) -> 0
B96: 64 | C96: =Pontszámkövető!C67&COUNTIF(Pontszámkövető!$C$4:C67,Pontszámkövető!C67) -> 0
B97: 65 | C97: =Pontszámkövető!C68&COUNTIF(Pontszámkövető!$C$4:C68,Pontszámkövető!C68) -> 0
B98: 66 | C98: =Pontszámkövető!C69&COUNTIF(Pontszámkövető!$C$4:C69,Pontszámkövető!C69) -> 0
B99: 67 | C99: =Pontszámkövető!C70&COUNTIF(Pontszámkövető!$C$4:C70,Pontszámkövető!C70) -> 0
B100: 68 | C100: =Pontszámkövető!C71&COUNTIF(Pontszámkövető!$C$4:C71,Pontszámkövető!C71) -> 0
B101: 69 | C101: =Pontszámkövető!C72&COUNTIF(Pontszámkövető!$C$4:C72,Pontszámkövető!C72) -> 0
B102: 70 | C102: =Pontszámkövető!C73&COUNTIF(Pontszámkövető!$C$4:C73,Pontszámkövető!C73) -> 0
B103: 71 | C103: =Pontszámkövető!C74&COUNTIF(Pontszámkövető!$C$4:C74,Pontszámkövető!C74) -> 0
B104: 72 | C104: =Pontszámkövető!C75&COUNTIF(Pontszámkövető!$C$4:C75,Pontszámkövető!C75) -> 0
B105: 73 | C105: =Pontszámkövető!C76&COUNTIF(Pontszámkövető!$C$4:C76,Pontszámkövető!C76) -> 0
B106: 74 | C106: =Pontszámkövető!C77&COUNTIF(Pontszámkövető!$C$4:C77,Pontszámkövető!C77) -> 0
B107: 75 | C107: =Pontszámkövető!C78&COUNTIF(Pontszámkövető!$C$4:C78,Pontszámkövető!C78) -> 0
B108: 76 | C108: =Pontszámkövető!C79&COUNTIF(Pontszámkövető!$C$4:C79,Pontszámkövető!C79) -> 0
B109: 77 | C109: =Pontszámkövető!C80&COUNTIF(Pontszámkövető!$C$4:C80,Pontszámkövető!C80) -> 0
B110: 78 | C110: =Pontszámkövető!C81&COUNTIF(Pontszámkövető!$C$4:C81,Pontszámkövető!C81) -> 0
B111: 79 | C111: =Pontszámkövető!C82&COUNTIF(Pontszámkövető!$C$4:C82,Pontszámkövető!C82) -> 0
B112: 80 | C112: =Pontszámkövető!C83&COUNTIF(Pontszámkövető!$C$4:C83,Pontszámkövető!C83) -> 0
B113: 81 | C113: =Pontszámkövető!C84&COUNTIF(Pontszámkövető!$C$4:C84,Pontszámkövető!C84) -> 0
B114: 82 | C114: =Pontszámkövető!C85&COUNTIF(Pontszámkövető!$C$4:C85,Pontszámkövető!C85) -> 0
B115: 83 | C115: =Pontszámkövető!C86&COUNTIF(Pontszámkövető!$C$4:C86,Pontszámkövető!C86) -> 0
B116: 84 | C116: =Pontszámkövető!C87&COUNTIF(Pontszámkövető!$C$4:C87,Pontszámkövető!C87) -> 0
B117: 85 | C117: =Pontszámkövető!C88&COUNTIF(Pontszámkövető!$C$4:C88,Pontszámkövető!C88) -> 0
B118: 86 | C118: =Pontszámkövető!C89&COUNTIF(Pontszámkövető!$C$4:C89,Pontszámkövető!C89) -> 0
B119: 87 | C119: =Pontszámkövető!C90&COUNTIF(Pontszámkövető!$C$4:C90,Pontszámkövető!C90) -> 0
B120: 88 | C120: =Pontszámkövető!C91&COUNTIF(Pontszámkövető!$C$4:C91,Pontszámkövető!C91) -> 0
B121: 89 | C121: =Pontszámkövető!C92&COUNTIF(Pontszámkövető!$C$4:C92,Pontszámkövető!C92) -> 0
B122: 90 | C122: =Pontszámkövető!C93&COUNTIF(Pontszámkövető!$C$4:C93,Pontszámkövető!C93) -> 0
B123: 91 | C123: =Pontszámkövető!C94&COUNTIF(Pontszámkövető!$C$4:C94,Pontszámkövető!C94) -> 0
B124: 92 | C124: =Pontszámkövető!C95&COUNTIF(Pontszámkövető!$C$4:C95,Pontszámkövető!C95) -> 0
B125: 93 | C125: =Pontszámkövető!C96&COUNTIF(Pontszámkövető!$C$4:C96,Pontszámkövető!C96) -> 0
B126: 94 | C126: =Pontszámkövető!C97&COUNTIF(Pontszámkövető!$C$4:C97,Pontszámkövető!C97) -> 0
B127: 95 | C127: =Pontszámkövető!C98&COUNTIF(Pontszámkövető!$C$4:C98,Pontszámkövető!C98) -> 0
B128: 96 | C128: =Pontszámkövető!C99&COUNTIF(Pontszámkövető!$C$4:C99,Pontszámkövető!C99) -> 0
B129: 97 | C129: =Pontszámkövető!C100&COUNTIF(Pontszámkövető!$C$4:C100,Pontszámkövető!C100) -> 0
B130: 98 | C130: =Pontszámkövető!C101&COUNTIF(Pontszámkövető!$C$4:C101,Pontszámkövető!C101) -> 0
B131: 99 | C131: =Pontszámkövető!C102&COUNTIF(Pontszámkövető!$C$4:C102,Pontszámkövető!C102) -> 0
B132: 100 | C132: =Pontszámkövető!C103&COUNTIF(Pontszámkövető!$C$4:C103,Pontszámkövető!C103) -> 0
B133: 101 | C133: =Pontszámkövető!C104&COUNTIF(Pontszámkövető!$C$4:C104,Pontszámkövető!C104) -> 0
B134: 102 | C134: =Pontszámkövető!C105&COUNTIF(Pontszámkövető!$C$4:C105,Pontszámkövető!C105) -> 0
B135: 103 | C135: =Pontszámkövető!C106&COUNTIF(Pontszámkövető!$C$4:C106,Pontszámkövető!C106) -> 0
B136: 104 | C136: =Pontszámkövető!C107&COUNTIF(Pontszámkövető!$C$4:C107,Pontszámkövető!C107) -> 0
B137: 105 | C137: =Pontszámkövető!C108&COUNTIF(Pontszámkövető!$C$4:C108,Pontszámkövető!C108) -> 0
B138: 106 | C138: =Pontszámkövető!C109&COUNTIF(Pontszámkövető!$C$4:C109,Pontszámkövető!C109) -> 0
B139: 107 | C139: =Pontszámkövető!C110&COUNTIF(Pontszámkövető!$C$4:C110,Pontszámkövető!C110) -> 0
B140: 108 | C140: =Pontszámkövető!C111&COUNTIF(Pontszámkövető!$C$4:C111,Pontszámkövető!C111) -> 0
B141: 109 | C141: =Pontszámkövető!C112&COUNTIF(Pontszámkövető!$C$4:C112,Pontszámkövető!C112) -> 0
B142: 110 | C142: =Pontszámkövető!C113&COUNTIF(Pontszámkövető!$C$4:C113,Pontszámkövető!C113) -> 0
B143: 111 | C143: =Pontszámkövető!C114&COUNTIF(Pontszámkövető!$C$4:C114,Pontszámkövető!C114) -> 0
B144: 112 | C144: =Pontszámkövető!C115&COUNTIF(Pontszámkövető!$C$4:C115,Pontszámkövető!C115) -> 0
B145: 113 | C145: =Pontszámkövető!C116&COUNTIF(Pontszámkövető!$C$4:C116,Pontszámkövető!C116) -> 0
B146: 114 | C146: =Pontszámkövető!C117&COUNTIF(Pontszámkövető!$C$4:C117,Pontszámkövető!C117) -> 0
B147: 115 | C147: =Pontszámkövető!C118&COUNTIF(Pontszámkövető!$C$4:C118,Pontszámkövető!C118) -> 0
B148: 116 | C148: =Pontszámkövető!C119&COUNTIF(Pontszámkövető!$C$4:C119,Pontszámkövető!C119) -> 0
B149: 117 | C149: =Pontszámkövető!C120&COUNTIF(Pontszámkövető!$C$4:C120,Pontszámkövető!C120) -> 0
B150: 118 | C150: =Pontszámkövető!C121&COUNTIF(Pontszámkövető!$C$4:C121,Pontszámkövető!C121) -> 0
B151: 119 | C151: =Pontszámkövető!C122&COUNTIF(Pontszámkövető!$C$4:C122,Pontszámkövető!C122) -> 0
B152: 120 | C152: =Pontszámkövető!C123&COUNTIF(Pontszámkövető!$C$4:C123,Pontszámkövető!C123) -> 0
B153: 121 | C153: =Pontszámkövető!C124&COUNTIF(Pontszámkövető!$C$4:C124,Pontszámkövető!C124) -> 0
B154: 122 | C154: =Pontszámkövető!C125&COUNTIF(Pontszámkövető!$C$4:C125,Pontszámkövető!C125) -> 0
B155: 123 | C155: =Pontszámkövető!C126&COUNTIF(Pontszámkövető!$C$4:C126,Pontszámkövető!C126) -> 0
B156: 124 | C156: =Pontszámkövető!C127&COUNTIF(Pontszámkövető!$C$4:C127,Pontszámkövető!C127) -> 0
B157: 125 | C157: =Pontszámkövető!C128&COUNTIF(Pontszámkövető!$C$4:C128,Pontszámkövető!C128) -> 0
B158: 126 | C158: =Pontszámkövető!C129&COUNTIF(Pontszámkövető!$C$4:C129,Pontszámkövető!C129) -> 0
B159: 127 | C159: =Pontszámkövető!C130&COUNTIF(Pontszámkövető!$C$4:C130,Pontszámkövető!C130) -> 0
B160: 128 | C160: =Pontszámkövető!C131&COUNTIF(Pontszámkövető!$C$4:C131,Pontszámkövető!C131) -> 0
B161: 129 | C161: =Pontszámkövető!C132&COUNTIF(Pontszámkövető!$C$4:C132,Pontszámkövető!C132) -> 0
B162: 130 | C162: =Pontszámkövető!C133&COUNTIF(Pontszámkövető!$C$4:C133,Pontszámkövető!C133) -> 0
B163: 131 | C163: =Pontszámkövető!C134&COUNTIF(Pontszámkövető!$C$4:C134,Pontszámkövető!C134) -> 0
B164: 132 | C164: =Pontszámkövető!C135&COUNTIF(Pontszámkövető!$C$4:C135,Pontszámkövető!C135) -> 0
B165: 133 | C165: =Pontszámkövető!C136&COUNTIF(Pontszámkövető!$C$4:C136,Pontszámkövető!C136) -> 0
B166: 134 | C166: =Pontszámkövető!C137&COUNTIF(Pontszámkövető!$C$4:C137,Pontszámkövető!C137) -> 0
B167: 135 | C167: =Pontszámkövető!C138&COUNTIF(Pontszámkövető!$C$4:C138,Pontszámkövető!C138) -> 0
B168: 136 | C168: =Pontszámkövető!C139&COUNTIF(Pontszámkövető!$C$4:C139,Pontszámkövető!C139) -> 0
B169: 137 | C169: =Pontszámkövető!C140&COUNTIF(Pontszámkövető!$C$4:C140,Pontszámkövető!C140) -> 0
B170: 138 | C170: =Pontszámkövető!C141&COUNTIF(Pontszámkövető!$C$4:C141,Pontszámkövető!C141) -> 0
B171: 139 | C171: =Pontszámkövető!C142&COUNTIF(Pontszámkövető!$C$4:C142,Pontszámkövető!C142) -> 0
B172: 140 | C172: =Pontszámkövető!C143&COUNTIF(Pontszámkövető!$C$4:C143,Pontszámkövető!C143) -> 0
B173: 141 | C173: =Pontszámkövető!C144&COUNTIF(Pontszámkövető!$C$4:C144,Pontszámkövető!C144) -> 0
B174: 142 | C174: =Pontszámkövető!C145&COUNTIF(Pontszámkövető!$C$4:C145,Pontszámkövető!C145) -> 0
B175: 143 | C175: =Pontszámkövető!C146&COUNTIF(Pontszámkövető!$C$4:C146,Pontszámkövető!C146) -> 0
B176: 144 | C176: =Pontszámkövető!C147&COUNTIF(Pontszámkövető!$C$4:C147,Pontszámkövető!C147) -> 0
B177: 145 | C177: =Pontszámkövető!C148&COUNTIF(Pontszámkövető!$C$4:C148,Pontszámkövető!C148) -> 0
B178: 146 | C178: =Pontszámkövető!C149&COUNTIF(Pontszámkövető!$C$4:C149,Pontszámkövető!C149) -> 0
B179: 147 | C179: =Pontszámkövető!C150&COUNTIF(Pontszámkövető!$C$4:C150,Pontszámkövető!C150) -> 0
B180: 148 | C180: =Pontszámkövető!C151&COUNTIF(Pontszámkövető!$C$4:C151,Pontszámkövető!C151) -> 0
B181: 149 | C181: =Pontszámkövető!C152&COUNTIF(Pontszámkövető!$C$4:C152,Pontszámkövető!C152) -> 0
B182: 150 | C182: =Pontszámkövető!C153&COUNTIF(Pontszámkövető!$C$4:C153,Pontszámkövető!C153) -> 0
B183: 151 | C183: =Pontszámkövető!C154&COUNTIF(Pontszámkövető!$C$4:C154,Pontszámkövető!C154) -> 0
B184: 152 | C184: =Pontszámkövető!C155&COUNTIF(Pontszámkövető!$C$4:C155,Pontszámkövető!C155) -> 0
B185: 153 | C185: =Pontszámkövető!C156&COUNTIF(Pontszámkövető!$C$4:C156,Pontszámkövető!C156) -> 0
B186: 154 | C186: =Pontszámkövető!C157&COUNTIF(Pontszámkövető!$C$4:C157,Pontszámkövető!C157) -> 0
B187: 155 | C187: =Pontszámkövető!C158&COUNTIF(Pontszámkövető!$C$4:C158,Pontszámkövető!C158) -> 0
B188: 156 | C188: =Pontszámkövető!C159&COUNTIF(Pontszámkövető!$C$4:C159,Pontszámkövető!C159) -> 0
B189: 157 | C189: =Pontszámkövető!C160&COUNTIF(Pontszámkövető!$C$4:C160,Pontszámkövető!C160) -> 0
B190: 158 | C190: =Pontszámkövető!C161&COUNTIF(Pontszámkövető!$C$4:C161,Pontszámkövető!C161) -> 0
B191: 159 | C191: =Pontszámkövető!C162&COUNTIF(Pontszámkövető!$C$4:C162,Pontszámkövető!C162) -> 0
B192: 160 | C192: =Pontszámkövető!C163&COUNTIF(Pontszámkövető!$C$4:C163,Pontszámkövető!C163) -> 0
B193: 161 | C193: =Pontszámkövető!C164&COUNTIF(Pontszámkövető!$C$4:C164,Pontszámkövető!C164) -> 0
B194: 162 | C194: =Pontszámkövető!C165&COUNTIF(Pontszámkövető!$C$4:C165,Pontszámkövető!C165) -> 0
B195: 163 | C195: =Pontszámkövető!C166&COUNTIF(Pontszámkövető!$C$4:C166,Pontszámkövető!C166) -> 0
B196: 164 | C196: =Pontszámkövető!C167&COUNTIF(Pontszámkövető!$C$4:C167,Pontszámkövető!C167) -> 0
B197: 165 | C197: =Pontszámkövető!C168&COUNTIF(Pontszámkövető!$C$4:C168,Pontszámkövető!C168) -> 0
B198: 166 | C198: =Pontszámkövető!C169&COUNTIF(Pontszámkövető!$C$4:C169,Pontszámkövető!C169) -> 0
B199: 167 | C199: =Pontszámkövető!C170&COUNTIF(Pontszámkövető!$C$4:C170,Pontszámkövető!C170) -> 0
B200: 168 | C200: =Pontszámkövető!C171&COUNTIF(Pontszámkövető!$C$4:C171,Pontszámkövető!C171) -> 0
B201: 169 | C201: =Pontszámkövető!C172&COUNTIF(Pontszámkövető!$C$4:C172,Pontszámkövető!C172) -> 0
B202: 170 | C202: =Pontszámkövető!C173&COUNTIF(Pontszámkövető!$C$4:C173,Pontszámkövető!C173) -> 0
B203: 171 | C203: =Pontszámkövető!C174&COUNTIF(Pontszámkövető!$C$4:C174,Pontszámkövető!C174) -> 0
... 454 more rows
